fUSD/lending_fUSD_20241129
["ID","MTS","AMOUNT","RATE_DAILY","PERIOD"]
[343712713,1732897842012,-150.0,9.928e-05,2]
[343712714,1732897842021,-1000.0,9.935e-05,2]
[343712715,1732897842032,-150.0,9.937e-05,2]
[343712716,1732897842041,-150.0,9.937e-05,2]
[343712717,1732897842051,-150.0,9.939e-05,2]
[343712718,1732897842061,-150.0,9.939e-05,2]
[343712719,1732897842070,-150.0,9.94e-05,2]
[343712720,1732897842080,-150.0,9.942e-05,2]
[343712721,1732897842093,-150.0,9.943e-05,2]
[343712722,1732897842103,-150.0,9.944e-05,2]
[343712723,1732897842113,-150.0,9.944e-05,2]
[343712724,1732897842123,-150.0,9.945e-05,2]
[343712725,1732897842133,-150.0,9.946e-05,2]
[343712726,1732897842142,-150.0,9.948e-05,2]
[343712727,1732897842151,-150.0,9.948e-05,2]
[343712728,1732897842164,-150.0,9.948e-05,2]
[343712729,1732897842177,-150.0,9.949e-05,2]
[343712730,1732897842187,-150.0,9.955e-05,2]
[343712731,1732897842196,-150.0,9.956e-05,2]
[343712732,1732897842206,-150.0,9.956e-05,2]
[343712733,1732897842216,-150.0,9.957e-05,2]
[343712734,1732897842225,-2338.2996,9.96e-05,2]
[343712735,1732897842235,-150.0,9.963e-05,2]
[343712736,1732897842245,-150.0,9.972e-05,2]
[343712737,1732897842254,-150.0,9.972e-05,2]
[343712738,1732897842264,-150.0,9.974e-05,2]
[343712739,1732897842274,-150.0,9.974e-05,2]
[343712740,1732897842283,-150.0,9.976e-05,2]
[343712741,1732897842293,-200.0,9.978e-05,2]
[343712742,1732897842302,-2641.22874491,9.98e-05,2]
[343712743,1732897842312,-150.0,9.981e-05,2]
[343712744,1732897842322,-150.0,9.982e-05,2]
[343712745,1732897842331,-200.0,9.983e-05,2]
[343712746,1732897842340,-2237.745,9.983e-05,2]
[343712747,1732897842350,-180.497,9.983e-05,2]
[343712748,1732897842359,-200.0,9.983e-05,2]
[343712749,1732897842369,-200.0,9.984e-05,2]
[343712750,1732897842378,-200.0,9.986e-05,2]
[343712751,1732897842387,-150.0,9.987e-05,2]
[343712752,1732897842397,-250000.0,9.99e-05,2]
[343712753,1732897842407,-150.0,9.99e-05,2]
[343712754,1732897842420,-150.0,9.99e-05,2]
[343712755,1732897842429,-9919.76005001,9.99e-05,2]
[343712756,1732897842438,-9919.76005001,9.99e-05,2]
[343712757,1732897842447,-9919.76005001,9.99e-05,2]
[343712758,1732897842457,-9919.76005001,9.99e-05,2]
[343712759,1732897842466,-150.0,9.99e-05,2]
[343712760,1732897842475,-150.0,9.99e-05,2]
[343712761,1732897842484,-150.0,9.993e-05,2]
[343712762,1732897842493,-200.0,9.994e-05,2]
[343712763,1732897842502,-150.0,9.995e-05,2]
[343712764,1732897842512,-150.0,9.995e-05,2]
[343712765,1732897842521,-200.0,9.995e-05,2]
[343712766,1732897842531,-150.0,9.996e-05,2]
[343712767,1732897842540,-150.0,9.997e-05,2]
[343712768,1732897842550,-590.82,9.998e-05,2]
[343712769,1732897842559,-200.0,9.998e-05,2]
[343712770,1732897842568,-274.9487512,9.999e-05,2]
[343712771,1732897842578,-2383.57632166,0.0001,2]
[343712772,1732897842587,-84080.33719963,0.0001,2]
[343712773,1732897842599,-540.045,0.0001,2]
[343712774,1732897842709,-152395.69538611,0.0001,2]
[343712775,1732897842719,-1000.0,0.0001,2]
[343712776,1732897842728,-535.37102507,0.0001,2]
[343712777,1732897842738,-535.37102502,0.0001,2]
[343712778,1732897842748,-535.37102502,0.0001,2]
[343712779,1732897842757,-535.37102502,0.0001,2]
[343712780,1732897842767,-535.37102502,0.0001,2]
[343712781,1732897842776,-535.37102502,0.0001,2]
[343712782,1732897842785,-535.37102502,0.0001,2]
[343712783,1732897842795,-535.37102502,0.0001,2]
[343712784,1732897842804,-535.37102502,0.0001,2]
[343712785,1732897842814,-97685.96538866,0.0001,2]
[343712793,1732897843130,-15071.20645556,0.0001,2]
[343712797,1732897844362,-3365.28633222,0.0001,2]
[343712798,1732897844373,-1251.07658822,0.0001,2]
[343712799,1732897844384,-23783.29752285,0.0001,2]
[343712800,1732897844397,-75145.251538,0.0001,2]
[343712801,1732897844416,-1999.78463999,0.0001,2]
[343712802,1732897844428,-12955.64272953,0.0001,2]
[343712803,1732897844440,-1634.13694699,0.0001,2]
[343712804,1732897844451,-493.55243109,0.0001,2]
[343712805,1732897844463,-524.81611627,0.0001,2]
[343712806,1732897844576,-362.32011654,0.0001,2]
[343712807,1732897844587,-1367.53559361,0.0001,2]
[343712808,1732897844598,-7500.00005,0.0001,2]
[343712809,1732897844771,-1891.28400005,0.0001,2]
[343712810,1732897844868,-69519033.5981085,0.0001,2]
[343712811,1732897845622,-159.9481,9.503e-05,2]
[343712812,1732897845632,-366.59833493,9.999e-05,2]
[343712813,1732897845642,-59233.94737745,0.0001,2]
[343712814,1732897845656,-42720.10371583,0.0001,2]
[343712815,1732897845668,-250.33643898,0.0001,2]
[343712816,1732897845680,-3451.8318639,0.0001,2]
[343712817,1732897845786,-2512740.66293072,0.0001,2]
[343712818,1732897845841,-14421.01891341,0.0001,2]
[343712820,1732897845881,-9156.27735544,0.0001,2]
[343712831,1732897847139,-1000.0,8.954e-05,2]
[343712832,1732897847150,-500.0,9.8e-05,2]
[343712833,1732897847162,-1301.24401395,0.0001,2]
[343712834,1732897847174,-2386.76413077,0.0001,2]
[343712836,1732897847185,-13957.65,0.0001,2]
[343712837,1732897847223,-2709.27200088,0.0001,2]
[343712838,1732897847234,-7299.91120872,0.0001,2]
[343712839,1732897847245,-762.77972237,0.0001,2]
[343712840,1732897847285,-32464.80006528,0.0001,2]
[343712841,1732897847358,-10733.717111,0.0001,2]
[343712842,1732897847382,-2910.81405484,0.0001,2]
[343712843,1732897848634,-342.32,0.0001,2]
[343712844,1732897849723,-0.37704949,0.0001,2]
[343712845,1732897849734,-863.06,0.0001,2]
[343712846,1732897849774,-1052.45026998,0.0001,2]
[343712847,1732897849785,-7736.7914867,0.0001,2]
[343712848,1732897849796,-480.3332896,0.0001,2]
[343712849,1732897850138,-7878.76608,0.0001,2]
[343712850,1732897850157,-36009.8029591,0.0001,2]
[343712851,1732897850177,-424.31675665,0.0001,2]
[343712852,1732897850188,-3386.0,0.0001,2]
[343712853,1732897888292,-150.0,9.594e-05,2]
[343712854,1732897888783,-150.0,9.594e-05,2]
[343712855,1732897889379,-150.0,9.594e-05,2]
[343712856,1732897889923,-150.0,9.594e-05,2]
[343712857,1732897890450,-150.0,9.594e-05,2]
[343712858,1732897890936,-150.0,9.594e-05,2]
[343712859,1732897891436,-150.0,9.594e-05,2]
[343712860,1732897892137,-150.0,9.594e-05,2]
[343712861,1732897892872,-150.0,9.594e-05,2]
[343712862,1732897893765,-150.0,9.594e-05,2]
[343712863,1732897894627,-150.0,9.594e-05,2]
[343712864,1732897895398,-150.0,9.594e-05,2]
[343712865,1732897926638,249.73739501,0.00016575,15]
[343712866,1732898003839,500.0,0.00026332,120]
[343712867,1732898007273,343.926942,0.00024832,120]
[343712868,1732898021459,1000.6152288,0.000265,120]
[343712869,1732898103700,45736.8,0.000265,120]
[343712870,1732898196822,7642.35,0.00017,10]
[343712871,1732898238129,233.08,7.079e-05,2]
[343712872,1732898315966,225.99,0.00016658,30]
[343712874,1732898601760,500.0,0.00026,120]
[343712875,1732898604315,200.0,0.00026,120]
[343712889,1732898916556,214.69,0.00016658,30]
[343712900,1732899032383,-1145.6,8.219e-05,2]
[343712901,1732899032393,-63.896,8.539e-05,2]
[343712902,1732899032404,-23836.104,8.539e-05,2]
[343712903,1732899032413,-200.0,8.567e-05,2]
[343712904,1732899032422,-784.98214636,8.567e-05,2]
[343712905,1732899032434,-215.01785364,8.567e-05,2]
[343712906,1732899032445,-152.82,8.585e-05,2]
[343712907,1732899032454,-300.0,8.586e-05,2]
[343712908,1732899032463,-155.95,8.63e-05,2]
[343712909,1732899032473,-250.0,8.63e-05,2]
[343712910,1732899032482,-200.0,8.631e-05,2]
[343712911,1732899032491,-200.0,8.654e-05,2]
[343712912,1732899032500,-1800.0,8.725e-05,2]
[343712913,1732899032512,-252.07,8.795e-05,2]
[343712914,1732899032521,-358.26,8.831e-05,2]
[343712915,1732899032531,-166.1,9.016e-05,2]
[343712916,1732899032539,-166.63,9.056e-05,2]
[343712917,1732899032549,-173.94,9.178e-05,2]
[343712918,1732899032558,-151.07,9.178e-05,2]
[343712919,1732899032567,-439.78,9.178e-05,2]
[343712920,1732899032576,-300.0,9.178e-05,2]
[343712921,1732899032585,-150.0,9.178e-05,2]
[343712922,1732899032594,-150.0,9.178e-05,2]
[343712923,1732899032603,-150.0,9.178e-05,2]
[343712924,1732899032615,-150.0,9.178e-05,2]
[343712925,1732899032624,-150.0,9.178e-05,2]
[343712926,1732899032634,-166.0,9.555e-05,2]
[343712927,1732899032643,-5186.5227,9.57e-05,2]
[343712928,1732899032653,-400.0,9.589e-05,2]
[343712929,1732899032663,-150.0,9.599e-05,2]
[343712930,1732899032673,-1997.58114611,9.6e-05,2]
[343712931,1732899032685,-1763.83982,9.6e-05,2]
[343712932,1732899032739,-513.38219973,9.6e-05,2]
[343712933,1732899032761,-501.5248881,9.6e-05,2]
[343712934,1732899032772,-646.9888024,9.6e-05,2]
[343712935,1732899032886,-7336.02770436,9.6e-05,2]
[343712936,1732899032898,-3041.94714143,9.6e-05,2]
[343712937,1732899032909,-32899.23369787,9.6e-05,2]
[343712938,1732899032918,-2500.0,9.6e-05,2]
[343712939,1732899032927,-1000.0,9.637e-05,2]
[343712940,1732899032936,-2402.595,9.67e-05,2]
[343712941,1732899032946,-2462.77,9.67e-05,2]
[343712942,1732899032955,-644.47,9.67e-05,2]
[343712943,1732899032964,-9999.99,9.67e-05,2]
[343712944,1732899032973,-150.99,9.67e-05,2]
[343712945,1732899032983,-8094.42,9.67e-05,2]
[343712946,1732899032991,-150.99,9.67e-05,2]
[343712947,1732899033001,-999.99,9.67e-05,2]
[343712948,1732899033011,-500.0,9.673e-05,2]
[343712949,1732899033020,-500.0,9.673e-05,2]
[343712950,1732899033029,-8491.98281399,9.7e-05,2]
[343712951,1732899033041,-12271.64867051,9.7e-05,2]
[343712952,1732899033053,-1096.10478348,9.7e-05,2]
[343712953,1732899033065,-602.0,9.7e-05,2]
[343712954,1732899033212,-40460.38249999,9.7e-05,2]
[343712955,1732899033224,-20395.9,9.7e-05,2]
[343712956,1732899033236,-1020.51711868,9.7e-05,2]
[343712957,1732899033247,-12197.17705348,9.7e-05,2]
[343712958,1732899033262,-36047.39735671,9.7e-05,2]
[343712959,1732899033355,-396390.49400316,9.7e-05,2]
[343712960,1732899033366,-1000.0,9.7e-05,2]
[343712961,1732899033376,-1000.0,9.75e-05,2]
[343712962,1732899033386,-150.0,9.785e-05,2]
[343712963,1732899033396,-150.0,9.796e-05,2]
[343712964,1732899033405,-3474.203,9.8e-05,2]
[343712965,1732899033414,-9429.52241408,9.8e-05,2]
[343712966,1732899033426,-16710.82814,9.8e-05,2]
[343712967,1732899033439,-750.37477044,9.8e-05,2]
[343712968,1732899033470,-1703.61103245,9.8e-05,2]
[343712969,1732899033482,-9535.17963535,9.8e-05,2]
[343712970,1732899033494,-4321.79265873,9.8e-05,2]
[343712971,1732899033508,-9732.82983115,9.8e-05,2]
[343712972,1732899033519,-635.05522731,9.8e-05,2]
[343712973,1732899033771,-1097.95352003,9.8e-05,2]
[343712974,1732899033796,-23896.89630262,9.8e-05,2]
[343713049,1732899038805,-9583.62476784,9.8e-05,2]
[343713050,1732899038815,-8139.95215724,9.8e-05,2]
[343713051,1732899038843,-6596.03655,9.8e-05,2]
[343713055,1732899038880,-54087.01129276,9.8e-05,2]
[343713056,1732899038889,-150.0,9.801e-05,2]
[343713059,1732899038899,-166.63,9.804e-05,2]
[343713061,1732899038909,-150.0,9.804e-05,2]
[343713065,1732899038918,-504.25,9.845e-05,2]
[343713066,1732899038928,-1600.0,9.863e-05,2]
[343713068,1732899038939,-150.0,9.867e-05,2]
[343713070,1732899038948,-150.0,9.868e-05,2]
[343713072,1732899038957,-150.0,9.883e-05,2]
[343713074,1732899038966,-476.1918,9.9e-05,2]
[343713077,1732899038976,-1000.0,9.9e-05,2]
[343713079,1732899038985,-1174.92038016,9.9e-05,2]
[343713081,1732899038996,-150.0,9.918e-05,2]
[343713083,1732899039006,-150.0,9.928e-05,2]
[343713085,1732899039017,-150.0,9.953e-05,2]
[343713087,1732899039027,-1902.448,9.972e-05,2]
[343713089,1732899039037,-180.497,9.972e-05,2]
[343713091,1732899039046,-150.0,9.996e-05,2]
[343713093,1732899039056,-566.2,9.998e-05,2]
[343713095,1732899039065,-152.74930622,9.999e-05,2]
[343713097,1732899039074,-21277.42127152,9.999e-05,2]
[343713099,1732899039084,-11617.0,9.999e-05,2]
[343713101,1732899039093,-1191.78816083,0.0001,2]
[343713103,1732899039102,-417059.81716291,0.0001,2]
[343713128,1732899039323,-178.45700834,0.0001,2]
[343713130,1732899039339,-178.45700834,0.0001,2]
[343713132,1732899039348,-69004369.75971742,0.0001,2]
[343713135,1732899039359,-10369.95158582,0.0001,2]
[343713137,1732899039370,-2328.01403785,0.0001,2]
[343713139,1732899039381,-935.77684801,0.0001,2]
[343713141,1732899039392,-437.8346797,0.0001,2]
[343713143,1732899039402,-18952.22339262,0.0001,2]
[343713158,1732899039550,-302.19217342,0.0001,2]
[343713160,1732899039562,-4699.45078869,0.0001,2]
[343713163,1732899039578,-2642.87674843,0.0001,2]
[343713173,1732899039660,-895.036608,0.0001,2]
[343713175,1732899039672,-41406.2660853,0.0001,2]
[343713222,1732899040402,-404.19592849,0.0001,2]
[343713223,1732899040453,-436.11620519,0.0001,2]
[343713224,1732899040477,-499.36172207,0.0001,2]
[343713225,1732899040498,-4886.7,0.0001,2]
[343713226,1732899040526,-1512.09842724,0.0001,2]
[343713227,1732899040595,-10785.07585649,0.0001,2]
[343713238,1732899043430,-150.01,9.999e-05,2]
[343713239,1732899043441,-2426.9203928,0.0001,2]
[343713240,1732899043456,-675.60039227,0.0001,2]
[343713241,1732899043517,-8042.12348911,0.0001,2]
[343713244,1732899043741,-8473.36098259,0.0001,2]
[343713274,1732899046367,-1264.25658373,0.0001,2]
[343713275,1732899046378,-282.19485763,0.0001,2]
[343713276,1732899046389,-2211.85,0.0001,2]
[343713277,1732899046400,-265.955,0.0001,2]
[343713278,1732899046411,-412.0798444,0.0001,2]
[343713279,1732899046422,-105063.9565249,0.0001,2]
[343713280,1732899046523,-2452.935,0.0001,2]
[343713281,1732899046534,-1391.28,0.0001,2]
[343713282,1732899046546,-4837.0982325,0.0001,2]
[343713283,1732899046559,-392.0945897,0.0001,2]
[343713284,1732899046572,-29425.55621916,0.0001,2]
[343713369,1732899210383,539.570451,0.00026,120]
[343713373,1732899599964,108615.07531978,0.00026,120]
[343713374,1732899609891,711.89,9.808e-05,14]
[343713375,1732899615792,337.6,0.00016658,30]
[343713390,1732900116899,301.09741475,7.121e-05,2]
[343713535,1732900232098,-583.82,7.991e-05,2]
[343713536,1732900232109,-394.18,8.001e-05,2]
[343713537,1732900232151,-4464.98406141,8.001e-05,2]
[343713538,1732900232161,-23159.59355079,8.001e-05,2]
[343713539,1732900232171,-200.0,8.001e-05,2]
[343713540,1732900232180,-2000.0,8.007e-05,2]
[343713541,1732900232189,-339.56,8.011e-05,2]
[343713542,1732900232198,-15104.12068805,8.021e-05,2]
[343713543,1732900232210,-5670.36895933,8.021e-05,2]
[343713544,1732900232241,-3125.51035262,8.021e-05,2]
[343713545,1732900232251,-166.1,8.023e-05,2]
[343713546,1732900232261,-787.68,8.036e-05,2]
[343713547,1732900232271,-767.76854738,8.178e-05,2]
[343713548,1732900232282,-775.28147162,8.178e-05,2]
[343713549,1732900232292,-1131.35,8.219e-05,2]
[343713550,1732900232301,-203.404,8.356e-05,2]
[343713551,1732900232310,-1757.72,8.357e-05,2]
[343713552,1732900232319,-161.9467596,8.381e-05,2]
[343713553,1732900232346,-1.0832404,8.381e-05,2]
[343713554,1732900232357,-250.0,8.456e-05,2]
[343713555,1732900232367,-250.0,8.484e-05,2]
[343713556,1732900232377,-523.73745242,8.507e-05,2]
[343713557,1732900232458,-4538.46254758,8.507e-05,2]
[343713558,1732900232468,-679.41,8.514e-05,2]
[343713559,1732900232477,-1000.0,8.555e-05,2]
[343713560,1732900232487,-150.0,8.645e-05,2]
[343713561,1732900232496,-3275.38,8.767e-05,2]
[343713562,1732900232506,-166.29,8.787e-05,2]
[343713563,1732900232516,-210.38,8.789e-05,2]
[343713564,1732900232526,-1500.0,8.831e-05,2]
[343713565,1732900232535,-500.0,8.831e-05,2]
[343713566,1732900232545,-1125.32,8.831e-05,2]
[343713567,1732900232555,-220.23,8.965e-05,2]
[343713568,1732900232564,-164.05,9.096e-05,2]
[343713569,1732900232574,-150.0,9.178e-05,2]
[343713570,1732900232584,-150.0,9.178e-05,2]
[343713571,1732900232595,-150.0,9.178e-05,2]
[343713572,1732900232604,-363.71,9.278e-05,2]
[343713573,1732900232614,-363.71,9.278e-05,2]
[343713574,1732900232624,-166.1,9.361e-05,2]
[343713575,1732900232634,-363.71,9.378e-05,2]
[343713576,1732900232644,-434.7,9.378e-05,2]
[343713577,1732900232653,-363.71,9.378e-05,2]
[343713578,1732900232663,-434.7,9.378e-05,2]
[343713579,1732900232672,-363.71,9.378e-05,2]
[343713580,1732900232682,-434.7,9.378e-05,2]
[343713581,1732900232691,-363.71,9.378e-05,2]
[343713582,1732900232701,-434.7,9.378e-05,2]
[343713583,1732900232711,-434.7,9.378e-05,2]
[343713584,1732900232720,-363.71,9.378e-05,2]
[343713585,1732900232729,-857.56,9.378e-05,2]
[343713586,1732900232739,-363.71,9.378e-05,2]
[343713587,1732900232748,-150.0,9.478e-05,2]
[343713588,1732900232758,-150.0,9.478e-05,2]
[343713589,1732900232767,-150.0,9.478e-05,2]
[343713590,1732900232776,-150.0,9.478e-05,2]
[343713591,1732900232785,-150.0,9.478e-05,2]
[343713592,1732900232794,-150.0,9.478e-05,2]
[343713593,1732900232804,-150.0,9.478e-05,2]
[343713594,1732900232813,-150.0,9.478e-05,2]
[343713595,1732900232823,-150.0,9.478e-05,2]
[343713596,1732900232833,-3846.155,9.5e-05,2]
[343713597,1732900232857,-255.0,9.51e-05,2]
[343713598,1732900232867,-2500.0,9.55e-05,2]
[343713599,1732900232876,-400.0,9.589e-05,2]
[343713600,1732900232885,-863.3417,9.6e-05,2]
[343713601,1732900232895,-57801.3735,9.6e-05,2]
[343713602,1732900232905,-306.7841,9.6e-05,2]
[343713603,1732900232914,-1000.0,9.6e-05,2]
[343713604,1732900232925,-500.0,9.6e-05,2]
[343713605,1732900232934,-1480.0745,9.6e-05,2]
[343713606,1732900232943,-157.42268694,9.623e-05,2]
[343713607,1732900232953,-500.0,9.623e-05,2]
[343713608,1732900232962,-500.0,9.623e-05,2]
[343713609,1732900232972,-1000.0,9.624e-05,2]
[343713610,1732900232981,-56481.64869424,9.65e-05,2]
[343713611,1732900233272,-24022.35205532,9.65e-05,2]
[343713634,1732900239663,-309100.73590396,9.65e-05,2]
[343713635,1732900239695,-37834.1647693,9.65e-05,2]
[343713636,1732900239704,-150.99,9.67e-05,2]
[343713637,1732900239713,-8384.4,9.67e-05,2]
[343713638,1732900239722,-3083.03,9.67e-05,2]
[343713639,1732900239735,-5957.0,9.712e-05,2]
[343713640,1732900239744,-13688.0,9.712e-05,2]
[343713641,1732900239753,-157.915,9.712e-05,2]
[343713642,1732900239762,-1164.0,9.712e-05,2]
[343713643,1732900239772,-150.0,9.731e-05,2]
[343713644,1732900239782,-150.0,9.733e-05,2]
[343713645,1732900239791,-150.0,9.738e-05,2]
[343713646,1732900239803,-150.0,9.74e-05,2]
[343713647,1732900239814,-150.0,9.752e-05,2]
[343713648,1732900239825,-150.0,9.756e-05,2]
[343713649,1732900239835,-1500.0,9.761e-05,2]
[343713651,1732900239845,-150.0,9.762e-05,2]
[343713653,1732900239856,-150.0,9.773e-05,2]
[343713654,1732900239866,-1500.0,9.777e-05,2]
[343713655,1732900239875,-150.0,9.778e-05,2]
[343713656,1732900239885,-150.0,9.779e-05,2]
[343713657,1732900239895,-150.0,9.783e-05,2]
[343713658,1732900239905,-150.0,9.786e-05,2]
[343713659,1732900239914,-150.0,9.788e-05,2]
[343713660,1732900239923,-150.0,9.788e-05,2]
[343713661,1732900239935,-889.4398,9.8e-05,2]
[343713662,1732900239945,-1758.12900758,9.8e-05,2]
[343713663,1732900239958,-6447.86969242,9.8e-05,2]
[343713664,1732900239967,-11259.8936,9.8e-05,2]
[343713665,1732900239976,-6189.1330102,9.8e-05,2]
[343713666,1732900239987,-8999.71719064,9.8e-05,2]
[343713668,1732900239998,-63582.76495791,9.8e-05,2]
[343713670,1732900240009,-975.83,9.8e-05,2]
[343713676,1732900240055,-39510.45534125,9.8e-05,2]
[343713678,1732900240064,-2500.0,9.8e-05,2]
[343713680,1732900240073,-1500.0,9.806e-05,2]
[343713682,1732900240083,-150.0,9.806e-05,2]
[343713684,1732900240092,-150.0,9.813e-05,2]
[343713685,1732900240102,-150.0,9.814e-05,2]
[343713688,1732900240112,-157.94387861,9.821e-05,2]
[343713690,1732900240121,-150.0,9.822e-05,2]
[343713692,1732900240130,-150.0,9.832e-05,2]
[343713693,1732900240139,-1500.0,9.846e-05,2]
[343713696,1732900240151,-1500.0,9.848e-05,2]
[343713698,1732900240161,-1500.0,9.85e-05,2]
[343713700,1732900240170,-1500.0,9.851e-05,2]
[343713702,1732900240179,-1500.0,9.852e-05,2]
[343713704,1732900240189,-150.0,9.863e-05,2]
[343713706,1732900240198,-1600.0,9.863e-05,2]
[343713708,1732900240207,-1500.0,9.872e-05,2]
[343713710,1732900240216,-150.0,9.872e-05,2]
[343713712,1732900240225,-210.38,9.887e-05,2]
[343713714,1732900240235,-1500.0,9.888e-05,2]
[343713716,1732900240244,-4923.00435436,9.9e-05,2]
[343713718,1732900240254,-10009.4567,9.9e-05,2]
[343713720,1732900240263,-198074.78,9.9e-05,2]
[343713722,1732900240273,-841.0814,9.9e-05,2]
[343713724,1732900240282,-625.0,9.9e-05,2]
[343713726,1732900240292,-625.0,9.9e-05,2]
[343713728,1732900240301,-6469.119,9.9e-05,2]
[343713730,1732900240311,-1500.0,9.906e-05,2]
[343713732,1732900240321,-150.0,9.91e-05,2]
[343713734,1732900240331,-150.0,9.922e-05,2]
[343713736,1732900240341,-150.0,9.923e-05,2]
[343713738,1732900240354,-1006.9502588,9.925e-05,2]
[343713740,1732900240364,-150.0,9.927e-05,2]
[343713742,1732900240373,-150.0,9.933e-05,2]
[343713744,1732900240382,-150.0,9.959e-05,2]
[343713746,1732900240392,-150.0,9.961e-05,2]
[343713748,1732900240401,-1500.0,9.962e-05,2]
[343713750,1732900240410,-150.0,9.964e-05,2]
[343713752,1732900240420,-499.0,9.973e-05,2]
[343713754,1732900240428,-500.0,9.973e-05,2]
[343713756,1732900240438,-508.87350147,9.973e-05,2]
[343713758,1732900240448,-1521.958,9.973e-05,2]
[343713760,1732900240457,-150.0,9.984e-05,2]
[343713762,1732900240466,-5951.85603006,9.99e-05,2]
[343713764,1732900240475,-5951.85603001,9.99e-05,2]
[343713766,1732900240484,-5951.85603001,9.99e-05,2]
[343713768,1732900240493,-5951.85603001,9.99e-05,2]
[343713770,1732900240503,-5951.85603001,9.99e-05,2]
[343713772,1732900240512,-5951.85603001,9.99e-05,2]
[343713774,1732900240522,-5951.85603001,9.99e-05,2]
[343713776,1732900240531,-5951.85603001,9.99e-05,2]
[343713778,1732900240540,-5951.85603001,9.99e-05,2]
[343713780,1732900240550,-150.0,9.992e-05,2]
[343713782,1732900240560,-542.61,9.998e-05,2]
[343713784,1732900240569,-423.93561778,9.999e-05,2]
[343713786,1732900240579,-180.6617463,9.999e-05,2]
[343713788,1732900240588,-21277.42127152,9.999e-05,2]
[343713790,1732900240597,-11617.0,0.0001,2]
[343713792,1732900240607,-178.45700834,0.0001,2]
[343713794,1732900240616,-178.45700834,0.0001,2]
[343713795,1732900240625,-282766.22727087,0.0001,2]
[343713916,1732900244201,-250.0,8.825e-05,2]
[343713919,1732900244211,-1191.78816083,0.0001,2]
[343713920,1732900244221,-56188.21183922,0.0001,2]
[343713923,1732900244233,-906802.70483796,0.0001,2]
[343713925,1732900244243,-13383081.83728837,0.0001,2]
[343713927,1732900244253,-213.35780354,0.0001,2]
[343713929,1732900244263,-1000.0,0.0001,2]
[343713931,1732900244273,-1000.0,0.0001,2]
[343713933,1732900244282,-1000.0,0.0001,2]
[343713934,1732900244291,-1000.0,0.0001,2]
[343713937,1732900244301,-204.0,0.0001,2]
[343713938,1732900244312,-615.0,0.0001,2]
[343713940,1732900244322,-204.0,0.0001,2]
[343713942,1732900244332,-615.0,0.0001,2]
[343713944,1732900244341,-204.0,0.0001,2]
[343713946,1732900244354,-615.0,0.0001,2]
[343713948,1732900244364,-204.0,0.0001,2]
[343713950,1732900244374,-615.0,0.0001,2]
[343713952,1732900244383,-204.0,0.0001,2]
[343713954,1732900244393,-615.0,0.0001,2]
[343713956,1732900244403,-204.0,0.0001,2]
[343713958,1732900244414,-615.0,0.0001,2]
[343713960,1732900244423,-204.0,0.0001,2]
[343713962,1732900244432,-615.0,0.0001,2]
[343713965,1732900244442,-204.0,0.0001,2]
[343713966,1732900244451,-615.0,0.0001,2]
[343713968,1732900244461,-204.0,0.0001,2]
[343713970,1732900244470,-615.0,0.0001,2]
[343713972,1732900244480,-204.0,0.0001,2]
[343713974,1732900244489,-615.0,0.0001,2]
[343713976,1732900244498,-615.0,0.0001,2]
[343713978,1732900244508,-615.0,0.0001,2]
[343713980,1732900244517,-615.0,0.0001,2]
[343713982,1732900244527,-615.0,0.0001,2]
[343713984,1732900244536,-615.0,0.0001,2]
[343713986,1732900244546,-615.0,0.0001,2]
[343713988,1732900244555,-615.0,0.0001,2]
[343713990,1732900244565,-615.0,0.0001,2]
[343713992,1732900244575,-615.0,0.0001,2]
[343713994,1732900244586,-615.0,0.0001,2]
[343713996,1732900244596,-150.0,0.0001,2]
[343713998,1732900244610,-150.0,0.0001,2]
[343714000,1732900244620,-1000.0,0.0001,2]
[343714002,1732900244631,-1000.0,0.0001,2]
[343714004,1732900244642,-1000.0,0.0001,2]
[343714006,1732900244652,-1000.0,0.0001,2]